bitfinex/quotes_ETHUSD_20220106
["timestamp","ask_amount","ask_price","bid_price","bid_amount"]
[1641458987401,0.00284212,3408.3,3407.4,4.03104112]
[1641458987599,0.0022737,3408.2,3407.4,4.03104112]
[1641458987899,0.01239786,3408.8,3407.5,0.00170527]
[1641458987900,0.00170527,3408.1,3407.5,0.00170527]
[1641458988100,1.98643166,3408.0,3407.5,0.00170527]
[1641458988303,0.00113685,3408.0,3407.5,0.00170527]
[1641458988500,0.00113685,3408.0,3407.3,1.25544619]
[1641458988701,0.00113685,3408.0,3407.4,0.00227369]
[1641458988902,0.00113685,3408.0,3407.5,0.73359]
[1641458989104,0.00113685,3408.0,3407.4,0.00227369]
[1641458989356,0.00113685,3408.0,3407.6,0.00113685]
[1641458989559,0.00113685,3408.0,3407.4,0.00227369]
[1641458989760,0.00113685,3408.0,3407.6,0.73367]
[1641458990060,0.00113685,3408.0,3407.7,0.3]
[1641458991760,0.00113685,3408.0,3407.8,1.98829198]
[1641458991960,0.00113685,3408.0,3407.8,2.28829198]
[1641458992560,0.00113685,3408.0,3407.8,1.98829198]
[1641458992861,0.00113685,3408.0,3407.8,2.28829198]
[1641458993096,0.00113685,3408.0,3407.8,1.98829198]
[1641458993695,0.00113685,3408.0,3407.9,1.49127083]
[1641458994501,0.00113685,3408.0,3407.9,1.79127083]
[1641458995304,0.00113685,3408.0,3407.9,0.3]
[1641458995505,0.00113685,3408.0,3407.7,1.79127083]
[1641458995705,0.00113685,3408.0,3407.8,1.98829198]
[1641458996107,0.00113685,3408.0,3407.8,2.28829198]
[1641458996305,0.00113685,3408.0,3407.8,0.3]
[1641458996504,0.00113685,3408.0,3407.7,1.79131263]
[1641458996505,0.00113685,3408.0,3407.7,2.09131263]
[1641458997347,0.00113685,3408.0,3407.7,1.6]
[1641458997546,0.00113685,3408.0,3407.7,0.6]
[1641458997747,5.00113685,3408.0,3407.7,3.58829198]
[1641458998546,3.13335153,3409.5,3409.0,1.1028762]
[1641458998751,1.9055367,3409.5,3407.9,1.2326]
[1641458998950,0.00625266,3409.1,3408.4,1.46685]
[1641458999348,0.00568423,3409.0,3408.5,0.3]
[1641458999548,0.00568423,3409.0,3407.9,0.73351]
[1641458999748,0.00511581,3408.9,3407.9,0.73351]
[1641458999949,0.00511581,3408.9,3408.4,1.23106714]
[1641459000151,0.00454739,3408.8,3408.4,1.83106714]
[1641459000593,0.00397896,3408.7,3408.6,1.49094526]
[1641459000795,0.00397896,3408.7,3408.6,1.79094526]
[1641459000992,0.00397896,3408.7,3408.6,2.09094526]
[1641459001192,0.00397896,3408.7,3408.6,1.79094526]
[1641459001597,0.00397896,3408.7,3408.6,2.09094526]
[1641459002296,0.00397896,3408.7,3408.6,1.79094526]
[1641459002498,0.00397896,3408.7,3408.6,5.10417249]
[1641459002700,0.00397896,3408.7,3408.6,4.80417249]
[1641459003101,0.00397896,3408.7,3408.6,3.31322723]
[1641459004098,0.00397896,3408.7,3408.1,2.20042]
[1641459004356,0.00397896,3408.7,3408.1,1.46694]
[1641459004555,0.00341054,3408.6,3408.0,4.80417249]
[1641459004753,2.22577355,3408.3,3408.0,4.80417249]
[1641459004956,2.22577355,3408.3,3408.2,3.31322723]
[1641459006155,2.22577355,3408.3,3408.1,3.31322723]
[1641459006558,0.00113685,3408.2,3408.1,3.31322723]
[1641459006957,0.00113685,3408.2,3408.1,3.91322723]
[1641459007358,0.00113685,3408.2,3408.1,0.6]
[1641459007557,0.00113685,3408.2,3407.8,0.30113685]
[1641459007994,0.00113685,3408.2,3407.8,1.03477375]
[1641459008600,0.00113685,3408.2,3407.9,3.31322723]
[1641459008802,0.00113685,3408.2,3407.9,4.34688723]
[1641459010202,0.00113685,3408.2,3408.0,1.4670769]
[1641459010402,0.00113685,3408.2,3408.1,1.4670272]
[1641459010801,0.00113685,3408.2,3408.1,1.7670272]
[1641459011304,0.00113685,3408.2,3408.1,1.4670272]
[1641459011502,0.00113685,3408.2,3408.1,4.80417249]
[1641459012544,0.00113685,3408.2,3408.0,4.03104112]
[1641459012746,0.00113685,3408.2,3407.8,2.11800111]
[1641459012947,0.00113685,3408.2,3407.8,2.41800111]
[1641459013352,0.00113685,3408.2,3407.8,3.71800111]
[1641459013553,0.00113685,3408.2,3408.0,1.4670398]
[1641459013752,0.00113685,3408.2,3408.1,20.91250672]
[1641459013950,0.00113685,3408.2,3408.1,17.73]
[1641459014151,0.00113685,3408.2,3408.1,18.73]
[1641459014754,0.00113685,3408.2,3408.1,28.06219537]
[1641459014952,0.00113685,3408.2,3408.1,28.79557077]
[1641459015997,0.00113685,3408.2,3408.1,26.80764375]
[1641459017799,0.00113685,3408.2,3408.1,29.14657077]
[1641459017998,5.36863673,3409.9,3408.2,8.85]
[1641459018199,5.36863673,3409.9,3409.7,1.1030599]
[1641459018402,5.36863673,3409.9,3409.7,1.4030599]
[1641459018403,1.76733673,3409.9,3409.7,1.4030599]
[1641459018601,0.88283803,3410.0,3409.7,1.4030599]
[1641459018602,2.65017476,3410.0,3409.7,1.7030599]
[1641459019002,0.00966319,3409.9,3409.7,1.7030599]
[1641459019242,0.00966319,3409.9,3409.8,0.73315]
[1641459019446,0.00966319,3409.9,3409.7,1.4030599]
[1641459019447,2.65017476,3410.0,3409.7,3.6026004]
[1641459019847,0.00909477,3409.8,3409.7,3.6026004]
[1641459020555,0.00909477,3409.8,3409.7,2.1363004]
[1641459022352,0.00909477,3409.8,3409.7,20.6173004]
[1641459023094,0.198,3410.0,3409.7,20.6173004]
[1641459023294,0.198,3410.0,3409.7,21.3502504]
[1641459023496,0.198,3410.0,3409.9,17.13]
[1641459023695,3.17548327,3411.1,3411.0,1.15524368]
[1641459023894,2.53582416,3411.1,3411.0,1.15524368]
[1641459024094,2.53582416,3411.1,3411.0,1.45524368]
[1641459024295,0.04317892,3411.1,3411.0,1.75524368]
[1641459024499,0.04317892,3411.1,3410.9,0.3]
[1641459024702,0.04317892,3411.1,3409.6,2.1668]
[1641459024900,0.00682108,3411.0,3409.6,2.1668]
[1641459025099,0.00682108,3411.0,3409.6,1.1668]
[1641459025302,0.00625266,3410.9,3409.6,1.1668]
[1641459025500,0.00625266,3410.9,3409.7,1.81948432]
[1641459025700,0.00568424,3410.8,3409.7,0.73316]
[1641459025899,0.00568424,3410.8,3409.3,17.13]
[1641459025900,0.00568424,3410.8,3409.9,1.46625]
[1641459026100,0.00511581,3410.7,3409.9,1.46625]
[1641459026302,0.00511581,3410.7,3408.7,1.45]
[1641459026501,0.00454739,3410.6,3408.7,1.45]
[1641459026747,0.00454739,3410.6,3408.8,0.00568423]
[1641459026947,0.7333217,3410.9,3409.1,1.12080603]
[1641459026948,1.70892622,3409.8,3409.1,1.12080603]
[1641459027145,0.04317892,3410.1,3409.1,1.12080603]
[1641459027352,0.04317892,3410.1,3409.3,1.46657]
[1641459027549,0.00113685,3410.0,3409.4,0.3]
[1641459027749,0.99431577,3410.7,3409.5,0.73321]
[1641459027952,0.3,3410.9,3409.5,0.73605212]
[1641459028250,1.77061703,3410.5,3409.6,0.0022737]
[1641459028651,0.00227369,3410.4,3409.6,0.0022737]
[1641459029050,0.00170527,3410.3,3409.6,0.0022737]
[1641459029451,0.00113684,3410.2,3409.6,0.0022737]
[1641459029853,0.00227369,3410.4,3409.6,0.0022737]
[1641459030353,1.77061703,3410.5,3409.6,0.0022737]
[1641459030354,0.00170527,3410.3,3409.6,0.0022737]
[1641459030794,0.00113684,3410.2,3409.6,0.0022737]
[1641459031194,0.00227369,3410.4,3409.6,0.0022737]
[1641459031595,1.0,3411.4,3409.6,0.0022737]
[1641459031596,0.00170527,3410.3,3409.6,0.0022737]
[1641459031896,4.73991133,3411.5,3410.2,1.32462332]
[1641459032094,0.00091512,3410.3,3410.2,1.62462332]
[1641459032698,4.536e-05,3410.4,3410.2,1.62462332]
[1641459032901,4.536e-05,3410.4,3410.2,17.73]
[1641459033701,4.536e-05,3410.4,3410.2,0.6]
[1641459036148,4.536e-05,3410.4,3410.2,17.73]
[1641459036350,4.536e-05,3410.4,3410.3,3.31048234]
[1641459036551,4.536e-05,3410.4,3410.3,20.44048234]
[1641459036753,0.00231905,3410.4,3410.3,20.44048234]
[1641459037150,0.00231905,3410.4,3410.3,24.74383797]
[1641459037993,0.00231905,3410.4,3410.3,26.73098042]
[1641459038398,0.00231905,3410.4,3410.3,27.73098042]
[1641459038595,0.00227369,3410.4,3410.3,27.73098042]
[1641459039797,2.37458243,3412.0,3410.3,27.73098042]
[1641459039998,2.37458243,3412.0,3411.4,0.73288]
[1641459040198,0.00738951,3411.7,3411.1,2.19863]
[1641459040402,0.00738951,3411.7,3411.2,0.3]
[1641459040599,0.00682108,3411.6,3411.2,0.3]
[1641459040999,0.00625266,3411.5,3411.2,0.3]
[1641459041399,0.00568424,3411.4,3411.2,0.3]
[1641459041600,0.00568424,3411.4,3411.2,1.60330011]
[1641459041846,0.00511581,3411.3,3411.2,1.60330011]
[1641459042047,0.00511581,3411.3,3411.2,18.73330011]
[1641459043150,0.00511581,3411.3,3411.2,20.90515754]
[1641459043451,0.00511581,3411.3,3411.2,18.73330011]
[1641459045251,0.00511581,3411.3,3411.1,2.9314596]
[1641459045501,0.00511581,3411.3,3410.7,0.73304]
[1641459045697,0.00454739,3411.2,3410.2,2.19879]
[1641459045900,2.93241,3413.4,3413.0,16.87744375]
[1641459046098,0.01224827,3413.1,3410.4,0.00454739]
[1641459046298,0.01224827,3413.1,3410.9,1.12986202]
[1641459046299,0.00170527,3411.5,3410.9,1.12986202]
[1641459046497,0.00170527,3411.5,3410.4,0.00454739]
[1641459046698,0.351,3412.0,3410.1,3.14270984]
[1641459046699,0.00113685,3411.4,3411.0,0.00113685]
[1641459046896,0.00113685,3411.4,3410.2,0.00568424]
[1641459047100,2.2661369,3411.1,3410.2,0.00568424]
[1641459047498,2.2661369,3411.1,3410.3,1.31469882]
[1641459047900,2.2661369,3411.1,3410.4,0.00454739]
[1641459048299,2.2661369,3411.1,3410.4,3.3151163]
[1641459048801,2.2661369,3411.1,3410.5,0.00397896]
[1641459049446,2.2661369,3411.1,3410.4,0.00454739]
[1641459050057,1.83849365,3410.5,3410.4,0.00454739]
[1641459050355,1.83849365,3410.5,3409.8,0.00795793]
[1641459050756,1.83849365,3410.5,3409.7,0.00852635]
[1641459051154,1.83849365,3410.5,3409.6,0.00909478]
[1641459051353,1.83849365,3410.5,3409.5,1.30608848]
[1641459051555,1.81968676,3409.9,3409.6,0.00909478]
[1641459052054,1.81968676,3409.9,3409.1,1.47854689]
[1641459052254,1.81968676,3409.9,3409.2,0.3]
[1641459052457,1.81968676,3409.9,3409.2,0.31136847]
[1641459052654,0.7334,3410.3,3409.3,1.41029884]
[1641459053100,0.7334,3410.3,3409.0,4.20085384]
[1641459053101,0.01212032,3410.2,3409.4,0.01023162]
[1641459053302,0.01212032,3410.2,3409.4,3.32121294]
[1641459053497,0.651,3410.1,3409.4,3.31098132]
[1641459053697,1.64978098,3410.0,3409.5,0.0096632]
[1641459053898,0.351,3409.9,3409.5,0.0096632]
[1641459054098,0.73356,3409.8,3409.5,0.0096632]
[1641459054301,0.73356,3409.8,3408.9,0.01307374]
[1641459054500,1.69726498,3409.3,3408.9,0.01307374]
[1641459054800,1.73356,3409.8,3408.9,0.01307374]
[1641459054801,1.0,3409.8,3408.9,0.01307374]
[1641459055001,1.3,3409.8,3408.9,0.01307374]
[1641459055201,0.73357,3409.4,3408.9,0.01307374]
[1641459055402,0.73357,3409.4,3408.5,0.01534743]
[1641459055602,2.03357,3409.4,3408.3,0.01648428]
[1641459055806,1.46727,3409.5,3408.3,0.01648428]
[1641459056002,1.87313454,3408.8,3408.3,0.01648428]
[1641459056202,1.87313454,3408.8,3408.0,1.34022351]
[1641459056203,0.73374,3408.7,3408.0,1.34022351]
[1641459056403,4.93597088,3408.7,3408.1,0.01762113]
[1641459056606,1.0,3408.6,3408.4,3.31180632]
[1641459057049,1.351,3408.6,3407.8,1.47689251]
[1641459057252,0.73392,3408.2,3407.8,1.47689251]
[1641459057451,0.73392,3408.2,3407.8,0.00350305]
[1641459057452,1.38492,3408.2,3407.8,0.00350305]
[1641459057653,0.00113684,3408.1,3407.5,1.96919002]
[1641459057854,4.01581327,3408.1,3407.5,1.96919002]
[1641459058053,1.0,3408.0,3407.6,0.00170528]
[1641459058462,1.93670413,3407.9,3407.3,0.00341055]
[1641459058655,2.93670413,3407.9,3407.3,0.00341055]
[1641459058854,3.23670413,3407.9,3407.3,0.00341055]
[1641459059054,0.734,3407.6,3407.3,0.00341055]
[1641459059653,0.734,3407.6,3407.0,0.6924663]
[1641459059654,0.734,3407.6,3407.1,0.00454739]
[1641459059854,0.351,3407.5,3407.1,0.00454739]
[1641459060055,0.73409,3407.3,3407.1,0.00454739]
[1641459060253,1.01065781,3407.3,3407.1,0.00454739]
[1641459060504,11.40905569,3407.2,3407.1,0.00454739]
[1641459060704,15.74032669,3407.2,3407.1,0.00454739]
[1641459060904,16.74032669,3407.2,3407.1,0.00454739]
[1641459061107,12.87285569,3407.2,3407.1,0.00454739]
[1641459061306,0.73431,3406.6,3406.1,1.96919002]
[1641459061507,0.73431,3406.6,3405.9,2.98189053]
[1641459061508,1.38531,3406.6,3405.9,2.98189053]
[1641459061702,0.651,3406.6,3406.2,0.00511581]
[1641459061904,2.24021319,3406.5,3406.2,0.00511581]
[1641459062104,3.24021319,3406.5,3405.6,0.00852635]
[1641459062907,0.73431,3406.3,3405.6,0.00852635]
[1641459063207,1.79045706,3405.8,3405.6,0.00852635]
[1641459064009,1.79045706,3405.8,3405.4,0.0096632]
[1641459064662,1.79045706,3405.8,3405.2,0.01080005]
[1641459065662,1.79045706,3405.8,3405.1,0.01136847]
[1641459066266,1.79045706,3405.8,3405.0,0.0119369]
[1641459067468,2.09045706,3405.8,3405.0,0.0119369]
[1641459068101,0.07118739,3406.0,3405.0,0.0119369]
[1641459068300,5.169,3406.2,3405.0,0.0119369]
[1641459068700,5.169,3406.2,3405.8,1.02607557]
[1641459068909,0.351,3406.6,3405.8,1.02607557]
[1641459069203,2.69008589,3406.9,3405.9,0.00682108]
[1641459069204,2.04669576,3406.7,3405.9,0.00682108]
[1641459069805,2.0431767,3406.7,3405.9,0.00682108]
[1641459070407,2.3431767,3406.7,3405.9,0.00682108]
[1641459071109,0.73433,3406.4,3405.9,0.00682108]
[1641459071308,1.03433,3406.4,3405.9,0.00682108]
[1641459071509,1.7687191,3406.4,3405.8,0.00738951]
[1641459071753,2.12290838,3406.0,3405.8,0.00738951]
[1641459071948,2.42290838,3406.0,3405.8,0.00738951]
[1641459072149,2.42290838,3406.0,3405.6,0.00852635]
[1641459072949,3.15731838,3406.0,3405.6,0.00852635]
[1641459073149,1.0,3405.9,3405.6,0.00852635]
[1641459074159,1.0,3406.4,3405.6,0.00852635]
[1641459074556,3.11953,3407.0,3405.6,0.00852635]
[1641459075597,2.12862763,3406.5,3405.6,1.48744969]
[1641459076002,2.77962763,3406.5,3405.7,0.00795793]
[1641459076603,1.0,3406.4,3405.7,0.00795793]
[1641459076806,1.0,3406.4,3405.6,0.00852635]
[1641459077003,1.73432,3406.4,3405.6,0.00852635]
[1641459077303,1.73432,3406.4,3405.5,0.00909478]
[1641459077704,1.73432,3406.4,3405.7,3.31473585]
[1641459078104,1.73432,3406.4,3405.8,0.00738951]
[1641459078603,0.73432,3406.4,3405.8,0.00738951]
[1641459079251,0.73432,3406.4,3405.7,0.00795793]
[1641459079454,1.66331872,3406.1,3405.7,0.00795793]
[1641459079657,1.66331872,3406.1,3405.9,3.31473585]
[1641459079855,1.73432,3406.4,3405.9,3.31473585]
[1641459080054,1.73432,3406.4,3406.0,0.00625266]
[1641459080255,1.73432,3406.4,3406.0,0.0013209]
[1641459080456,0.73432,3406.4,3406.0,0.0013209]
[1641459080658,1.73432,3406.4,3406.0,0.0013209]
[1641459080861,2.24577503,3406.2,3405.9,0.00188932]
[1641459081658,2.24577503,3406.2,3405.9,3.31473585]
[1641459082061,2.24577503,3406.2,3406.0,0.0013209]
[1641459083102,2.24577503,3406.2,3405.8,0.00245775]
[1641459083901,2.24577503,3406.2,3405.5,0.00416302]
[1641459084102,7.24577503,3406.2,3405.5,0.00416302]
[1641459084303,7.24577503,3406.2,3405.4,0.00473144]
[1641459084509,2.08537,3406.1,3405.4,0.00473144]
[1641459084712,2.20377,3406.1,3405.4,0.00473144]
[1641459084908,0.1136,3406.0,3405.0,0.00700514]
[1641459085109,0.351,3405.9,3405.0,0.00700514]
[1641459085309,0.651,3405.9,3405.0,0.00700514]
[1641459085610,1.89405402,3405.2,3405.0,0.00700514]
[1641459085810,1.89405402,3405.2,3405.0,0.10677464]
[1641459086212,0.351,3405.6,3405.1,0.00643671]
[1641459086511,0.651,3405.6,3405.1,0.00643671]
[1641459086966,0.73455,3405.5,3405.1,0.00643671]
[1641459087170,2.19521763,3405.4,3405.1,0.00643671]
[1641459087373,2.19521763,3405.4,3405.2,4.79442409]
[1641459087571,3.49521763,3405.4,3405.2,4.79442409]
[1641459087772,3.49521763,3405.4,3405.3,0.00529986]
[1641459088372,3.84621763,3405.4,3405.3,0.00529986]
[1641459088672,3.84621763,3405.4,3405.2,0.00586829]
[1641459089573,1.651,3405.4,3405.2,0.00586829]
[1641459089773,1.651,3405.4,3405.3,3.31550075]
[1641459089977,0.651,3405.4,3405.3,3.31550075]
[1641459090174,0.651,3405.4,3405.3,3.32080061]
[1641459091009,2.89477422,3405.4,3405.3,3.32080061]
[1641459091408,3.89477422,3405.4,3405.3,3.32080061]
[1641459092510,3.89477422,3405.4,3405.3,3.08782924]
[1641459092706,3.89477422,3405.4,3405.3,2.86099924]
[1641459097459,1.651,3405.4,3405.3,2.86099924]
[1641459097662,0.651,3405.4,3405.3,2.86099924]
[1641459100605,0.351,3405.4,3405.3,2.86099924]
[1641459100804,7.72312464,3406.2,3405.3,2.86099924]
[1641459100805,0.73434,3406.0,3405.3,2.86099924]
[1641459101006,7.72312464,3406.2,3405.3,3.16099924]
[1641459101204,7.72312464,3406.2,3405.4,0.00473144]
[1641459102052,1.67222435,3405.9,3405.4,0.00473144]
[1641459103053,0.7344,3405.8,3405.3,0.00149986]
[1641459103252,0.7344,3405.8,3405.2,0.00193243]
[1641459103253,0.351,3405.7,3405.0,0.0997695]
[1641459103453,0.4614,3405.7,3405.0,0.0997695]
[1641459103652,0.351,3405.7,3405.1,0.00113685]
[1641459103854,0.1152,3405.6,3405.1,0.00113685]
[1641459104053,0.73455,3405.4,3405.1,0.00113685]
[1641459104254,0.351,3405.3,3405.1,0.00113685]
[1641459104455,0.651,3405.3,3405.1,0.00113685]
[1641459104859,2.24026982,3405.2,3405.1,0.00113685]
[1641459105060,3.59126982,3405.2,3405.1,0.00113685]
[1641459106505,3.59126982,3405.2,3405.1,0.10090635]
[1641459107505,4.32587982,3405.2,3405.1,0.10090635]
[1641459108404,4.32587982,3405.2,3405.1,0.10262378]
[1641459109859,3.32587982,3405.2,3405.1,0.10262378]
[1641459110662,0.351,3405.2,3405.1,0.10262378]
[1641459111661,0.00113684,3405.5,3405.1,0.10262378]
[1641459112061,0.00113684,3405.5,3405.3,1.34826055]
[1641459112262,0.00113684,3405.5,3405.1,0.10262378]
[1641459112863,1.70802666,3405.5,3405.3,1.46866]
[1641459114101,6.70802666,3405.5,3405.3,1.46866]
[1641459114506,1.0,3405.4,3405.3,1.46866]
[1641459115907,1.3,3405.4,3405.1,0.10262378]
[1641459116110,0.73451,3405.3,3405.1,0.10262378]
[1641459116751,0.351,3405.2,3405.1,0.10262378]
[1641459117152,0.651,3405.2,3405.1,0.10262378]
[1641459118253,0.351,3405.2,3405.1,0.10262378]
[1641459121016,0.651,3405.2,3405.1,0.10262378]
[1641459121322,0.651,3405.2,3405.1,0.09922378]
[1641459121917,0.763,3405.2,3405.1,2.378e-05]
[1641459122217,0.73475,3404.9,3404.6,0.6917151]
[1641459122419,1.94239981,3404.7,3404.6,0.6917151]
[1641459122620,2.29339981,3404.7,3404.6,0.6917151]
[1641459122818,3.59339981,3404.7,3404.6,0.6917151]
[1641459123521,4.32816981,3404.7,3404.6,0.6917151]
[1641459125761,4.32816981,3404.7,3404.6,0.31632139]
[1641459127357,4.32816981,3404.7,3404.0,0.02204554]
[1641459127559,0.73475,3404.3,3404.0,0.02204554]
[1641459127757,0.351,3404.2,3404.1,0.00568424]
[1641459128003,0.651,3404.2,3404.1,0.00568424]
[1641459128207,0.651,3404.2,3403.2,10.7339]
[1641459128402,0.651,3404.2,3404.1,3.17529504]
[1641459128606,1.38586,3404.2,3404.1,3.17529504]
[1641459128804,2.2046,3403.9,3403.3,5.10880976]
[1641459129008,0.351,3403.8,3403.3,5.10880976]
[1641459129207,0.351,3403.8,3403.1,3.9367]
[1641459129208,0.351,3403.8,3403.4,0.00397896]
[1641459129407,2.38591,3403.8,3402.9,1.47892334]
[1641459129609,0.00170527,3403.7,3403.0,0.00227369]
[1641459130008,2.07618183,3403.1,3403.0,0.00227369]
[1641459130410,8.4,3403.0,3402.7,1.47892334]
[1641459130612,0.01264803,3402.8,3402.7,2.334e-05]
[1641459130809,0.36364803,3402.8,3402.6,0.6517151]
[1641459131008,0.36364803,3402.8,3401.9,1.50420007]
[1641459131009,5.2,3402.7,3401.9,1.50420007]
[1641459131210,1.351,3402.6,3401.9,1.50420007]
[1641459131411,0.73532,3401.7,3401.0,11.1361]
[1641459131610,0.351,3401.6,3401.1,1.03162026]
[1641459131855,0.351,3401.6,3401.5,0.00284212]
[1641459133256,0.73532,3401.7,3401.5,0.00284212]
[1641459133457,1.47064,3401.8,3401.5,0.00284212]
[1641459133658,2.20870212,3402.5,3401.5,0.00284212]
[1641459133856,2.20870212,3402.5,3401.3,0.50397896]
[1641459134056,0.00227369,3402.4,3401.3,18.13397896]
[1641459134259,0.00227369,3402.4,3402.2,1.30783198]
[1641459134461,0.00170527,3402.3,3402.2,1.30783198]
[1641459136129,0.00170527,3402.3,3401.6,0.0222034]
[1641459136637,2.20586,3402.5,3401.7,0.00170527]
[1641459136638,1.47130685,3402.2,3401.7,0.00170527]
[1641459136839,1.59717188,3402.1,3401.7,0.00170527]
[1641459137038,1.0,3402.1,3401.7,0.00170527]
[1641459137235,1.0,3402.1,3401.7,1.27741209]
[1641459137436,1.47017,3402.2,3401.7,1.27741209]
[1641459137637,0.73507,3402.0,3401.8,0.00113685]
[1641459138037,0.73507,3402.0,3401.2,0.00454739]
[1641459138236,0.73507,3402.0,3400.9,0.00625266]
[1641459138436,0.351,3401.9,3400.9,0.00625266]
[1641459138638,0.73533,3401.4,3400.9,0.00625266]
[1641459138837,1.62865272,3401.2,3400.9,0.00625266]
[1641459139253,1.62865272,3401.2,3400.7,0.0073895]
[1641459139658,1.62865272,3401.2,3400.6,0.00795793]
[1641459140055,0.73533,3401.1,3400.6,0.00795793]
[1641459140258,11.5,3400.9,3399.8,6.17]
[1641459140457,11.5,3400.9,3399.1,14.49]
[1641459140458,0.351,3400.8,3399.1,14.49]
[1641459140655,1.47139,3400.6,3400.1,0.00284211]
[1641459140854,1.47139,3400.6,3399.1,14.49]
[1641459140855,0.3,3400.4,3399.1,14.49]
[1641459141058,0.651,3400.3,3399.1,3.1675]
[1641459141257,2.07748915,3399.7,3399.4,1.15429849]
[1641459141455,0.73572,3399.6,3399.4,1.15429849]
[1641459141662,0.73572,3399.6,3399.5,0.00341055]
[1641459142264,0.73572,3399.6,3398.7,0.00795793]
[1641459142558,0.73572,3399.6,3398.6,0.00852636]
[1641459142559,2.10818683,3399.1,3398.6,0.00852636]
[1641459142759,2.10818683,3399.1,3398.8,1.34038733]
[1641459143005,2.10818683,3399.1,3398.5,0.00909478]
[1641459143206,2.10818683,3399.1,3398.9,0.00682109]
[1641459143406,3.10818683,3399.1,3398.5,0.00909478]
[1641459143606,2.10818683,3399.1,3398.5,0.00909478]
[1641459143807,1.0,3399.0,3398.5,0.00909478]
[1641459144006,1.47175,3398.9,3398.5,0.00909478]
[1641459144206,0.351,3398.8,3398.5,0.00909478]
[1641459144408,0.351,3398.8,3398.4,0.6917151]
[1641459144609,0.73609,3398.6,3398.4,0.6917151]
[1641459144813,0.351,3398.5,3398.4,0.6917151]
[1641459145010,1.78920784,3397.9,3397.7,0.5717631]
[1641459145211,1.78920784,3397.9,3397.7,0.5317631]
[1641459145412,1.78920784,3397.9,3397.8,0.00397896]
[1641459146310,1.73606,3398.1,3397.8,1.00219352]
[1641459146779,1.47194,3398.6,3397.9,0.00341054]
[1641459146967,5.0,3399.1,3397.9,0.00341054]
[1641459147370,5.0,3399.1,3398.1,1.8599519]
[1641459147567,5.0,3399.1,3397.9,0.00341054]
[1641459148971,0.73587,3398.8,3397.9,0.00341054]
[1641459149370,5.0,3399.1,3397.9,3.49408538]
[1641459149770,5.0,3399.1,3398.0,0.00284212]
[1641459150270,2.15913379,3398.9,3397.9,2.1413595]
[1641459150510,2.15913379,3398.9,3397.9,0.00341054]
[1641459150711,2.15913379,3398.9,3398.0,0.00284212]
[1641459150912,3.63097379,3398.9,3397.9,0.00341054]
[1641459151112,1.0,3398.8,3397.9,0.00341054]
[1641459151513,0.73585,3399.0,3397.9,3.6007512]
[1641459151714,5.0,3399.1,3397.9,0.00341054]
[1641459151915,5.0,3399.1,3398.0,0.00284212]
[1641459152116,5.0,3399.1,3397.9,0.00341054]
[1641459152520,1.60614249,3398.9,3397.9,1.64228835]
[1641459152717,1.60614249,3398.9,3398.0,0.0009135]
[1641459152916,1.60614249,3398.9,3398.0,0.00375562]
[1641459153116,1.60614249,3398.9,3398.1,0.00227369]
[1641459153317,5.0,3399.1,3398.1,0.00227369]
[1641459154562,6.77491631,3399.1,3398.1,0.00227369]
[1641459155166,0.73585,3398.9,3398.1,0.00227369]
[1641459156764,0.73585,3398.9,3398.4,1.46449643]
[1641459157368,5.0,3399.1,3398.4,1.46449643]
[1641459157568,5.0,3399.1,3398.4,1.76449643]
[1641459157772,5.0,3399.1,3398.5,1.46449643]
[1641459158217,6.69025339,3399.1,3398.5,1.46449643]
[1641459158615,5.0,3399.1,3398.2,1.95210567]
[1641459158816,5.0,3399.1,3398.5,1.52017094]
[1641459159016,5.0,3399.1,3398.6,3.76611322]
[1641459159217,5.0,3399.1,3398.5,1.52017094]
[1641459159616,5.0,3399.1,3398.6,5.43756434]
[1641459159816,5.0,3399.1,3398.6,22.56756434]
[1641459160020,3.56043684,3399.1,3398.6,23.56756434]
[1641459160219,3.56043684,3399.1,3398.9,1.36839133]
[1641459160426,1.26197319,3400.6,3399.0,3.67034293]
[1641459160623,1.26197319,3400.6,3399.1,1.0]
[1641459160822,0.00966321,3400.4,3399.2,21.68986063]
[1641459161020,0.00966321,3400.4,3399.7,1.98448467]
[1641459161322,0.00909478,3400.3,3399.8,0.73534]
[1641459161521,0.00909478,3400.3,3399.9,1.21755548]
[1641459161761,0.00852636,3400.2,3399.9,1.51755548]
[1641459161965,0.00852636,3400.2,3399.9,1.21755548]
[1641459162264,0.00795794,3400.1,3399.9,1.21755548]
[1641459162666,0.00738951,3400.0,3399.9,1.21755548]
[1641459163070,0.0119369,3400.0,3399.9,4.35703092]
[1641459163566,0.0119369,3400.0,3399.9,4.35818919]
[1641459164868,0.0119369,3400.0,3399.9,7.79556895]
[1641459165068,0.0119369,3400.0,3399.9,4.65818919]
[1641459165270,0.0119369,3400.0,3399.9,6.65035121]
[1641459165730,0.0119369,3400.0,3399.9,7.65035121]
[1641459167027,0.0119369,3400.0,3399.9,4.73104671]
[1641459168030,0.0119369,3400.0,3399.9,2.73888469]
[1641459169767,0.0119369,3400.0,3399.9,1.52132921]
[1641459170669,0.0119369,3400.0,3399.9,0.00115827]
[1641459170874,0.0119369,3400.0,3399.9,5.827e-05]
[1641459174312,0.8629369,3400.0,3398.3,0.00113685]
[1641459174511,0.73594,3398.8,3398.3,0.00113685]
[1641459174711,0.73594,3398.8,3398.2,0.00284211]
[1641459174913,0.73594,3398.8,3398.0,1.37959353]
[1641459175413,0.73594,3398.8,3398.1,0.00341053]
[1641459176018,0.7359026,3398.7,3398.1,0.00341053]
[1641459176213,0.73591,3398.4,3398.1,0.00341053]
[1641459176415,1.47188,3398.9,3398.1,0.00341053]
[1641459177263,1.85364676,3398.6,3398.1,0.00341053]
[1641459177666,1.85364676,3398.6,3397.8,0.0051158]
[1641459178670,0.73589,3398.4,3397.8,0.0051158]
[1641459179066,0.7361082,3398.2,3397.8,0.0051158]
[1641459179465,1.7361082,3398.2,3397.8,0.0051158]
[1641459179870,0.73614,3398.0,3397.8,0.0051158]
[1641459181114,0.73597,3398.2,3397.8,0.0051158]
[1641459181417,1.0,3398.4,3398.3,1.36770505]
[1641459181610,0.36313295,3399.6,3398.3,1.36770505]
[1641459181811,0.36313295,3399.6,3398.3,1.66997874]
[1641459182015,0.00341055,3399.3,3398.4,0.00170526]
[1641459182215,2.13205073,3398.8,3398.4,0.00170526]
[1641459183017,2.13205073,3398.8,3398.4,3.53920161]
[1641459183414,2.13205073,3398.8,3398.5,0.00113684]
[1641459183815,1.0,3399.2,3398.5,0.00113684]
[1641459184018,4.45584778,3399.3,3398.5,0.00113684]